[Event "Polofinale MCR juniorek 2023"]
[Site "Czech Republic"]
[Date "2023.11.14"]
[Round "5.4"]
[White "Markina, Sofiia"]
[Black "Hosova, Sandra"]
[Result "1-0"]
[TimeControl "90 min per 40 moves + 15 min + 30 sec / move from move 1"]
[WhiteFideId "23744014"]
[BlackFideId "397717"]
[WhiteElo "1563"]
[BlackElo "1730"]

1. d4 {[%clk 01:30:56]} {[%emt 00:00:03]} d5 {[%clk 01:28:31]} {[%emt
00:02:29]} 2. c4 {[%clk 01:31:12]} {[%emt 00:00:15]} c6 {[%clk 01:28:40]}
{[%emt 00:00:21]} 3. Nf3 {[%clk 01:31:11]} {[%emt 00:00:31]} e6 {[%clk
01:28:27]} {[%emt 00:00:44]} 4. Nc3 {[%clk 01:31:09]} {[%emt 00:00:32]} Nf6
{[%clk 01:28:41]} {[%emt 00:00:15]} 5. cxd5 {[%clk 01:31:22]} {[%emt 00:00:17]}
exd5 {[%clk 01:28:00]} {[%emt 00:01:12]} 6. Bg5 {[%clk 01:31:38]} {[%emt
00:00:14]} Nbd7 {[%clk 01:25:43]} {[%emt 00:02:46]} 7. e3 {[%clk 01:31:36]}
{[%emt 00:00:32]} Be7 {[%clk 01:25:21]} {[%emt 00:00:53]} 8. Bd3 {[%clk
01:31:56]} {[%emt 00:00:10]} Ne4 {[%clk 01:21:19]} {[%emt 00:04:32]} 9. Bxe7
{[%clk 01:29:45]} {[%emt 00:02:41]} Qxe7 {[%clk 01:21:18]} {[%emt 00:00:31]} 10.
O-O {[%clk 01:29:44]} {[%emt 00:00:31]} O-O {[%clk 01:19:51]} {[%emt 00:01:57]}
11. Qc2 {[%clk 01:28:45]} {[%emt 00:01:29]} f5 {[%clk 01:14:31]} {[%emt
00:05:50]} 12. Nd2 {[%clk 01:28:04]} {[%emt 00:01:11]} Ndf6 {[%clk 01:01:19]}
{[%emt 00:13:41]} 13. Rae1 {[%clk 01:25:32]} {[%emt 00:03:02]} Bd7 {[%clk
00:53:46]} {[%emt 00:08:03]} 14. f3 {[%clk 01:22:13]} {[%emt 00:03:48]} Nd6
{[%clk 00:53:57]} {[%emt 00:00:19]} 15. e4 {[%clk 01:09:01]} {[%emt 00:13:42]}
dxe4 {[%clk 00:52:04]} {[%emt 00:02:24]} 16. fxe4 {[%clk 01:09:13]} {[%emt
00:00:18]} fxe4 {[%clk 00:50:21]} {[%emt 00:02:12]} 17. Ndxe4 {[%clk 01:09:13]}
{[%emt 00:00:30]} Nfxe4 {[%clk 00:48:40]} {[%emt 00:02:11]} 18. Nxe4 {[%clk
01:09:03]} {[%emt 00:00:39]} Rxf1+ {[%clk 00:46:50]} {[%emt 00:02:21]} 19. Rxf1
{[%clk 01:09:22]} {[%emt 00:00:12]} h6 {[%clk 00:33:08]} {[%emt 00:14:11]} 20.
Qc5 {[%clk 01:08:06]} {[%emt 00:01:45]} Nc8 {[%clk 00:28:48]} {[%emt 00:04:51]}
21. Qh5 {[%emt 00:05:06]} Be8 {[%clk 00:24:52]} {[%emt 00:04:24]} 22. Qf5
{[%emt 00:02:10]} g6 {[%clk 00:23:41]} {[%emt 00:01:39]} 23. Qh3 {[%clk
01:00:00]} {[%emt 00:02:24]} Kg7 {[%clk 00:22:46]} {[%emt 00:01:25]} 24. Nc5
{[%clk 00:58:10]} {[%emt 00:02:21]} Bf7 {[%clk 00:22:26]} {[%emt 00:00:49]} 25.
Qg3 {[%clk 00:49:09]} {[%emt 00:09:30]} Qd6 {[%clk 00:18:00]} {[%emt 00:04:58]}
26. Qf2 {[%clk 00:45:14]} {[%emt 00:04:25]} Qe7 {[%clk 00:17:29]} {[%emt
00:01:00]} 27. Re1 {[%clk 00:44:40]} {[%emt 00:01:05]} Qc7 {[%clk 00:17:23]}
{[%emt 00:00:36]} 28. Ne6+ {[%clk 00:43:57]} {[%emt 00:01:13]} Bxe6 {[%clk
00:17:45]} {[%emt 00:00:09]} 29. Rxe6 {[%clk 00:44:21]} {[%emt 00:00:06]} Qf7
{[%clk 00:14:05]} {[%emt 00:04:09]} 30. Rxg6+ {[%clk 00:44:12]} {[%emt
00:00:38]} Qxg6 {[%clk 00:14:26]} {[%emt 00:00:10]} 31. Bxg6 {[%clk 00:44:38]}
{[%emt 00:00:04]} Kxg6 {[%clk 00:14:47]} {[%emt 00:00:09]} 32. Qg3+ {[%clk
00:44:54]} {[%emt 00:00:14]} Kf7 {[%clk 00:14:17]} {[%emt 00:01:00]} 33. Qc7+
{[%clk 00:45:19]} {[%emt 00:00:06]} Ne7 {[%clk 00:14:10]} {[%emt 00:00:37]} 34.
Qxb7 {[%clk 00:45:42]} {[%emt 00:00:07]} Rd8 {[%clk 00:14:31]} {[%emt
00:00:09]} 35. Qxa7 {[%clk 00:46:07]} {[%emt 00:00:05]} Ke6 {[%clk 00:14:24]}
{[%emt 00:00:37]} 36. Qc5 {[%clk 00:46:18]} {[%emt 00:00:19]} Rd5 {[%clk
00:14:19]} {[%emt 00:00:35]} 37. Qc3 {[%clk 00:46:36]} {[%emt 00:00:12]} Kd7
{[%clk 00:14:15]} {[%emt 00:00:33]} 38. Qh3+ {[%clk 00:46:54]} {[%emt
00:00:11]} Nf5 {[%clk 00:14:30]} {[%emt 00:00:16]} 39. g4 {[%clk 00:46:49]}
{[%emt 00:00:34]} Nxd4 {[%clk 00:14:41]} {[%emt 00:00:20]} 40. Qxh6 {[%clk
00:46:44]} {[%emt 00:00:35]} Ne6 {[%clk 00:13:35]} {[%emt 00:01:36]} 41. h4
{[%clk 00:46:58]} {[%emt 00:00:17]} Rd1+ {[%clk 00:13:03]} {[%emt 00:01:02]} 42.
Kf2 {[%clk 00:47:19]} {[%emt 00:00:05]} Rh1 {[%clk 00:12:57]} {[%emt 00:00:39]}
43. Qh8 {[%clk 00:46:07]} {[%emt 00:01:40]} Ke7 {[%clk 00:11:54]} {[%emt
00:01:36]} 44. Qe5 {[%clk 00:46:03]} {[%emt 00:00:34]} Rxh4 {[%clk 00:11:33]}
{[%emt 00:00:52]} 45. g5 {[%clk 00:46:20]} {[%emt 00:00:13]} Rg4 {[%clk
00:08:27]} {[%emt 00:03:35]} 46. Qf6+ {[%clk 00:45:37]} {[%emt 00:01:14]} Kd6
{[%clk 00:08:50]} {[%emt 00:00:08]} 47. g6 {[%clk 00:45:09]} {[%emt 00:00:58]}
Kd7 {[%clk 00:07:59]} {[%emt 00:01:21]} 48. Qf7+ {[%clk 00:45:21]} {[%emt
00:00:18]} Kd6 {[%clk 00:08:19]} {[%emt 00:00:10]} 49. Qf5 {[%clk 00:45:07]}
{[%emt 00:00:41]} Rg5 {[%clk 00:08:08]} {[%emt 00:00:44]} 50. Qd3+ {[%clk
00:45:10]} {[%emt 00:00:27]} Ke7 {[%clk 00:08:05]} {[%emt 00:00:33]} 51. a4
{[%clk 00:45:09]} {[%emt 00:00:31]} Kf6 {[%clk 00:05:46]} {[%emt 00:02:49]} 52.
Qd6 {[%clk 00:45:12]} {[%emt 00:00:23]} Rf5+ {[%clk 00:05:34]} {[%emt
00:00:46]} 53. Ke3 {[%clk 00:45:11]} {[%emt 00:00:27]} Re5+ {[%clk 00:05:44]}
{[%emt 00:00:24]} 54. Kf3 {[%clk 00:45:10]} {[%emt 00:00:30]} Rf5+ {[%clk
00:04:10]} {[%emt 00:02:05]} 55. Ke4 {[%clk 00:45:30]} {[%emt 00:00:08]} Rc5
{[%clk 00:02:13]} {[%emt 00:02:30]} 56. g7 {[%clk 00:44:41]} {[%emt 00:01:18]}
Rg5 {[%clk 00:01:06]} {[%emt 00:01:37]} 57. Qxc6 {[%clk 00:45:03]} {[%emt
00:00:09]} Rxg7 {[%clk 00:01:09]} {[%emt 00:00:27]} 58. a5 {[%clk 00:45:13]}
{[%emt 00:00:20]} Rg4+ {[%clk 00:01:15]} {[%emt 00:00:23]} 59. Ke3 {[%clk
00:45:15]} {[%emt 00:00:19]} Ke7 {[%clk 00:14:26]} {[%emt 00:02:59]} 60. a6
{[%clk 01:01:22]} {[%emt 00:00:24]} Rg3+ {[%clk 00:14:20]} {[%emt 00:00:35]} 61.
Ke4 {[%emt 00:01:59]} 1-0

[Event "Polofinale MCR juniorek 2023"]
[Site "Czech Republic"]
[Date "2023.11.14"]
[Round "5.5"]
[White "Sikorova, Jana"]
[Black "Nagyova, Daniela"]
[Result "1/2-1/2"]
[TimeControl "90 min per 40 moves + 15 min + 30 sec / move from move 1"]
[WhiteFideId "392472"]
[BlackFideId "390070"]
[WhiteElo "1662"]
[BlackElo "1872"]

1. d4 {[%clk 01:30:55]} {[%emt 00:00:04]} Nf6 {[%clk 01:30:44]} {[%emt
00:00:16]} 2. c4 {[%clk 01:31:14]} {[%emt 00:00:10]} e6 {[%clk 01:30:49]}
{[%emt 00:00:26]} 3. Nf3 {[%clk 01:31:28]} {[%emt 00:00:15]} d5 {[%clk
01:30:38]} {[%emt 00:00:41]} 4. Nc3 {[%clk 01:31:02]} {[%emt 00:00:56]} Be7
{[%clk 01:29:30]} {[%emt 00:01:38]} 5. Bg5 {[%clk 01:30:57]} {[%emt 00:00:35]}
h6 {[%clk 01:29:01]} {[%emt 00:00:58]} 6. Bh4 {[%clk 01:30:38]} {[%emt
00:00:49]} O-O {[%clk 01:28:37]} {[%emt 00:00:55]} 7. e3 {[%clk 01:30:34]}
{[%emt 00:00:34]} Nbd7 {[%clk 01:25:55]} {[%emt 00:03:12]} 8. Bd3 {[%clk
01:28:52]} {[%emt 00:02:11]} dxc4 {[%clk 01:24:05]} {[%emt 00:02:21]} 9. Bxc4
{[%clk 01:28:16]} {[%emt 00:01:06]} b6 {[%clk 01:20:17]} {[%emt 00:04:19]} 10.
O-O {[%clk 01:25:12]} {[%emt 00:03:33]} Bb7 {[%clk 01:18:21]} {[%emt 00:02:26]}
11. Qe2 {[%clk 01:23:36]} {[%emt 00:02:05]} Ne4 {[%clk 01:12:23]} {[%emt
00:06:29]} 12. Bxe7 {[%clk 01:19:56]} {[%emt 00:04:10]} Qxe7 {[%clk 01:11:53]}
{[%emt 00:01:01]} 13. Rac1 {[%clk 01:16:58]} {[%emt 00:03:27]} c5 {[%clk
01:08:21]} {[%emt 00:04:02]} 14. Rfd1 {[%clk 01:12:26]} {[%emt 00:05:01]} Rfd8
{[%clk 01:03:57]} {[%emt 00:04:55]} 15. Bd3 {[%clk 01:03:53]} {[%emt 00:09:03]}
Nef6 {[%clk 00:59:14]} {[%emt 00:05:14]} 16. h3 {[%clk 00:59:57]} {[%emt
00:04:24]} e5 {[%clk 00:48:02]} {[%emt 00:11:43]} 17. Ba6 {[%clk 00:50:17]}
{[%emt 00:10:10]} Bxa6 {[%clk 00:43:17]} {[%emt 00:05:16]} 18. Qxa6 {[%clk
00:50:28]} {[%emt 00:00:18]} e4 {[%clk 00:37:36]} {[%emt 00:06:10]} 19. Ne1
{[%clk 00:46:40]} {[%emt 00:04:18]} cxd4 {[%clk 00:35:04]} {[%emt 00:03:03]} 20.
Rxd4 {[%clk 00:46:00]} {[%emt 00:01:08]} Nc5 {[%clk 00:33:49]} {[%emt
00:01:46]} 21. Rxd8+ {[%clk 00:43:27]} {[%emt 00:03:03]} Rxd8 {[%clk 00:33:04]}
{[%emt 00:01:15]} 22. Qe2 {[%clk 00:42:56]} {[%emt 00:01:00]} Nd3 {[%clk
00:27:37]} {[%emt 00:05:58]} 23. Rd1 {[%clk 00:41:18]} {[%emt 00:02:07]} Ne5
{[%clk 00:22:12]} {[%emt 00:05:56]} 24. Nc2 {[%clk 00:38:11]} {[%emt 00:03:37]}
Rxd1+ {[%clk 00:20:10]} {[%emt 00:02:32]} 25. Qxd1 {[%clk 00:37:51]} {[%emt
00:00:50]} Nd3 {[%clk 00:19:18]} {[%emt 00:01:23]} 26. b3 {[%clk 00:36:25]}
{[%emt 00:01:55]} Qe5 {[%clk 00:12:26]} {[%emt 00:07:23]} 27. Nd4 {[%clk
00:34:31]} {[%emt 00:02:23]} Nd5 {[%clk 00:11:43]} {[%emt 00:01:13]} 28. Nxd5
{[%clk 00:31:35]} {[%emt 00:03:26]} Qxd5 {[%clk 00:12:11]} {[%emt 00:00:03]} 29.
Qg4 {[%clk 00:30:49]} {[%emt 00:01:14]} Kh7 {[%clk 00:08:09]} {[%emt 00:04:33]}
30. Qc8 {[%clk 00:19:17]} {[%emt 00:12:02]} Qa5 {[%clk 00:07:10]} {[%emt
00:01:30]} 31. Qf5+ {[%clk 00:17:30]} {[%emt 00:02:16]} Qxf5 {[%clk 00:07:25]}
{[%emt 00:00:15]} 32. Nxf5 {[%clk 00:17:53]} {[%emt 00:00:08]} Nc1 {[%clk
00:07:29]} {[%emt 00:00:26]} 33. Nd6 {[%clk 00:16:49]} {[%emt 00:01:33]} Nxa2
{[%clk 00:07:38]} {[%emt 00:00:21]} 34. Nxe4 {[%clk 00:16:08]} {[%emt
00:01:11]} Nc1 {[%clk 00:07:31]} {[%emt 00:00:37]} 35. Nd2 {[%clk 00:15:58]}
{[%emt 00:00:40]} Kg6 {[%clk 00:04:33]} {[%emt 00:03:29]} 36. Kf1 {[%clk
00:15:06]} {[%emt 00:01:22]} Kf6 {[%clk 00:04:24]} {[%emt 00:00:39]} 37. Ke1
{[%clk 00:13:54]} {[%emt 00:01:42]} Ke6 {[%clk 00:04:18]} {[%emt 00:00:36]} 38.
Kd1 {[%clk 00:13:17]} {[%emt 00:01:07]} Nd3 {[%clk 00:04:37]} {[%emt 00:00:11]}
39. f3 {[%clk 00:12:44]} {[%emt 00:01:02]} Nc5 {[%clk 00:04:15]} {[%emt
00:00:53]} 40. Kc2 {[%clk 00:12:36]} {[%emt 00:00:37]} Kd5 {[%clk 00:03:15]}
{[%emt 00:01:30]} 1/2-1/2

[Event "Polofinale MCR juniorek 2023"]
[Site "Czech Republic"]
[Date "2023.11.14"]
[Round "5.6"]
[White "Bartova, Hana"]
[Black "Dudova, Pavlina"]
[Result "0-1"]
[TimeControl "90 min per 40 moves + 15 min + 30 sec / move from move 1"]
[WhiteFideId "23732695"]
[BlackFideId "394629"]
[WhiteElo "1270"]
[BlackElo "1763"]

1. e4 {[%clk 01:30:56]} {[%emt 00:00:02]} e6 {[%clk 01:30:53]} {[%emt
00:00:08]} 2. c4 {[%clk 01:29:37]} {[%emt 00:01:48]} d5 {[%clk 01:31:14]}
{[%emt 00:00:10]} 3. exd5 {[%clk 01:29:07]} {[%emt 00:01:01]} exd5 {[%clk
01:31:36]} {[%emt 00:00:08]} 4. cxd5 {[%clk 01:29:29]} {[%emt 00:00:07]} Nf6
{[%clk 01:31:59]} {[%emt 00:00:07]} 5. Bb5+ {[%clk 01:27:35]} {[%emt 00:02:25]}
Nbd7 {[%clk 01:32:08]} {[%emt 00:00:20]} 6. Nc3 {[%clk 01:26:38]} {[%emt
00:01:27]} a6 {[%clk 01:31:57]} {[%emt 00:00:43]} 7. Ba4 {[%clk 01:24:21]}
{[%emt 00:02:46]} b5 {[%clk 01:31:46]} {[%emt 00:00:40]} 8. Bb3 {[%clk
01:23:44]} {[%emt 00:01:06]} Nb6 {[%clk 01:31:50]} {[%emt 00:00:26]} 9. d4
{[%clk 01:19:08]} {[%emt 00:05:07]} Nfxd5 {[%clk 01:28:42]} {[%emt 00:03:38]}
10. Nf3 {[%clk 01:17:34]} {[%emt 00:02:02]} Bb4 {[%clk 01:28:32]} {[%emt
00:00:41]} 11. Qd3 {[%clk 01:17:07]} {[%emt 00:00:55]} Qe7+ {[%clk 01:27:41]}
{[%emt 00:01:23]} 12. Kd1 {[%clk 01:14:58]} {[%emt 00:02:38]} Bxc3 {[%clk
01:26:52]} {[%emt 00:01:21]} 13. bxc3 {[%clk 01:15:13]} {[%emt 00:00:14]} O-O
{[%clk 01:26:22]} {[%emt 00:01:00]} 14. Bc2 {[%clk 01:13:52]} {[%emt 00:01:52]}
g6 {[%clk 01:25:10]} {[%emt 00:01:42]} 15. Bb3 {[%clk 00:59:44]} {[%emt
00:14:38]} Bf5 {[%clk 01:24:30]} {[%emt 00:01:10]} 16. Qd2 {[%clk 00:59:57]}
{[%emt 00:00:13]} Rac8 {[%clk 01:19:22]} {[%emt 00:05:41]} 17. Re1 {[%clk
00:58:28]} {[%emt 00:02:00]} Qf6 {[%clk 01:19:23]} {[%emt 00:00:24]} 18. Ne5
{[%clk 00:55:02]} {[%emt 00:04:01]} c5 {[%clk 01:17:15]} {[%emt 00:02:37]} 19.
g4 {[%clk 00:47:40]} {[%emt 00:07:53]} cxd4 {[%clk 01:15:14]} {[%emt 00:02:31]}
20. Bxd5 {[%clk 00:38:36]} {[%emt 00:09:35]} Nxd5 {[%clk 01:15:34]} {[%emt
00:00:10]} 21. gxf5 {[%clk 00:38:56]} {[%emt 00:00:10]} Nxc3+ {[%clk 01:15:52]}
{[%emt 00:00:13]} 22. Qxc3 {[%clk 00:39:09]} {[%emt 00:00:16]} dxc3 {[%clk
01:16:03]} {[%emt 00:00:19]} 0-1

[Event "Polofinale MCR juniorek 2023"]
[Site "Czech Republic"]
[Date "2023.11.14"]
[Round "5.7"]
[White "Nespora, Tatana"]
[Black "Petirova, Iva"]
[Result "0-1"]
[TimeControl "90 min per 40 moves + 15 min + 30 sec / move from move 1"]
[WhiteFideId "392286"]
[BlackFideId "23741961"]
[WhiteElo "1690"]
[BlackElo "1636"]

1. e4 {[%clk 01:30:50]} {[%emt 00:00:09]} c5 {[%clk 01:30:49]} {[%emt
00:00:12]} 2. Nf3 {[%clk 01:31:00]} {[%emt 00:00:20]} e6 {[%clk 01:31:00]}
{[%emt 00:00:19]} 3. d4 {[%clk 01:30:56]} {[%emt 00:00:34]} cxd4 {[%clk
01:31:20]} {[%emt 00:00:09]} 4. Nxd4 {[%clk 01:31:11]} {[%emt 00:00:15]} Nf6
{[%clk 01:31:40]} {[%emt 00:00:10]} 5. Nc3 {[%clk 01:31:17]} {[%emt 00:00:24]}
Nc6 {[%clk 01:31:56]} {[%emt 00:00:14]} 6. Bg5 {[%clk 01:27:41]} {[%emt
00:04:06]} h6 {[%clk 01:23:36]} {[%emt 00:08:49]} 7. Bh4 {[%clk 01:24:03]}
{[%emt 00:04:09]} Bb4 {[%clk 01:17:00]} {[%emt 00:07:07]} 8. Nxc6 {[%clk
01:17:12]} {[%emt 00:07:21]} bxc6 {[%clk 01:17:22]} {[%emt 00:00:08]} 9. Qf3
{[%clk 01:12:12]} {[%emt 00:05:29]} Be7 {[%clk 01:01:04]} {[%emt 00:16:49]} 10.
Bd3 {[%clk 01:08:53]} {[%emt 00:03:49]} d5 {[%clk 01:00:21]} {[%emt 00:01:13]}
11. e5 {[%clk 01:06:59]} {[%emt 00:02:24]} Nd7 {[%clk 01:00:26]} {[%emt
00:00:26]} 12. Bxe7 {[%clk 01:07:19]} {[%emt 00:00:10]} Qxe7 {[%clk 01:00:49]}
{[%emt 00:00:07]} 13. Qg3 {[%clk 01:06:59]} {[%emt 00:00:50]} Qg5 {[%clk
00:57:36]} {[%emt 00:03:43]} 14. f4 {[%clk 01:05:56]} {[%emt 00:01:33]} Qxg3+
{[%clk 00:57:48]} {[%emt 00:00:19]} 15. hxg3 {[%clk 01:06:24]} {[%emt
00:00:02]} a5 {[%clk 00:57:15]} {[%emt 00:01:03]} 16. O-O-O {[%clk 01:03:23]}
{[%emt 00:03:30]} Ba6 {[%clk 00:57:29]} {[%emt 00:00:17]} 17. Bxa6 {[%clk
01:01:55]} {[%emt 00:01:58]} Rxa6 {[%clk 00:57:53]} {[%emt 00:00:06]} 18. Ne2
{[%clk 01:02:14]} {[%emt 00:00:11]} Ke7 {[%clk 00:57:31]} {[%emt 00:00:52]} 19.
g4 {[%clk 00:58:01]} {[%emt 00:04:43]} Rb6 {[%clk 00:55:33]} {[%emt 00:02:28]}
20. c4 {[%clk 00:53:40]} {[%emt 00:04:50]} Rhb8 {[%clk 00:54:37]} {[%emt
00:01:26]} 21. Rd2 {[%clk 00:52:20]} {[%emt 00:01:51]} Rb4 {[%clk 00:53:11]}
{[%emt 00:01:55]} 22. cxd5 {[%clk 00:51:21]} {[%emt 00:01:29]} cxd5 {[%clk
00:53:31]} {[%emt 00:00:11]} 23. Kb1 {[%clk 00:51:02]} {[%emt 00:00:48]} Nb6
{[%clk 00:51:29]} {[%emt 00:02:32]} 24. Nd4 {[%clk 00:45:02]} {[%emt 00:06:30]}
Nc4 {[%clk 00:48:55]} {[%emt 00:03:04]} 25. Nc6+ {[%clk 00:36:50]} {[%emt
00:08:42]} Ke8 {[%clk 00:49:18]} {[%emt 00:00:08]} 26. Nxb4 {[%clk 00:36:27]}
{[%emt 00:00:53]} Nxd2+ {[%clk 00:49:39]} {[%emt 00:00:08]} 27. Kc2 {[%clk
00:36:20]} {[%emt 00:00:38]} Rxb4 {[%clk 00:50:03]} {[%emt 00:00:06]} 28. Kxd2
{[%clk 00:36:38]} {[%emt 00:00:11]} Rxb2+ {[%clk 00:50:26]} {[%emt 00:00:07]}
29. Ke3 {[%clk 00:36:49]} {[%emt 00:00:19]} Rxa2 {[%clk 00:50:46]} {[%emt
00:00:11]} 30. Rb1 {[%clk 00:36:34]} {[%emt 00:00:44]} Rxg2 {[%clk 00:46:56]}
{[%emt 00:04:20]} 31. Kf3 {[%clk 00:36:11]} {[%emt 00:00:53]} Rc2 {[%clk
00:47:11]} {[%emt 00:00:15]} 32. Rb8+ {[%clk 00:35:47]} {[%emt 00:00:54]} Kd7
{[%clk 00:47:26]} {[%emt 00:00:16]} 33. Ra8 {[%clk 00:35:40]} {[%emt 00:00:37]}
Rc5 {[%clk 00:46:37]} {[%emt 00:01:19]} 34. Ra7+ {[%clk 00:36:01]} {[%emt
00:00:09]} Kc6 {[%clk 00:46:53]} {[%emt 00:00:15]} 35. Rxf7 {[%clk 00:36:06]}
{[%emt 00:00:24]} a4 {[%clk 00:47:00]} {[%emt 00:00:22]} 36. Ra7 {[%clk
00:35:15]} {[%emt 00:01:21]} Kb5 {[%clk 00:47:11]} {[%emt 00:00:19]} 37. f5
{[%clk 00:33:32]} {[%emt 00:02:13]} Rc3+ {[%clk 00:30:06]} {[%emt 00:17:34]} 38.
Ke2 {[%clk 00:31:03]} {[%emt 00:03:00]} d4 {[%clk 00:28:48]} {[%emt 00:01:48]}
39. f6 {[%clk 00:21:08]} {[%emt 00:10:25]} gxf6 {[%clk 00:29:02]} {[%emt
00:00:16]} 40. exf6 {[%clk 00:21:32]} {[%emt 00:00:05]} Rc8 {[%clk 00:26:18]}
{[%emt 00:03:14]} 41. Rh7 {[%clk 00:19:00]} {[%emt 00:03:02]} Rg8 {[%clk
00:19:03]} {[%emt 00:07:45]} 42. f7 {[%clk 00:10:20]} {[%emt 00:09:10]} Rf8
{[%clk 00:19:28]} {[%emt 00:00:05]} 43. Rxh6 {[%clk 00:10:45]} {[%emt
00:00:05]} Rxf7 {[%clk 00:19:53]} {[%emt 00:00:06]} 44. Rxe6 {[%clk 00:11:10]}
{[%emt 00:00:05]} a3 {[%clk 00:19:30]} {[%emt 00:00:53]} 45. Kd3 {[%clk
00:09:55]} {[%emt 00:01:44]} Rf1 {[%clk 00:18:44]} {[%emt 00:01:16]} 46. Re2
{[%clk 00:04:35]} {[%emt 00:05:51]} Rd1+ {[%clk 00:19:00]} {[%emt 00:00:13]} 47.
Ke4 {[%clk 00:05:01]} {[%emt 00:00:04]} d3 {[%clk 00:19:07]} {[%emt 00:00:23]}
48. Ra2 {[%clk 00:03:59]} {[%emt 00:01:32]} d2 {[%clk 00:18:59]} {[%emt
00:00:38]} 49. Kd3 {[%clk 00:03:47]} {[%emt 00:00:42]} Kb4 {[%clk 00:19:01]}
{[%emt 00:00:28]} 50. Kc2 {[%clk 00:02:18]} {[%emt 00:01:59]} Rg1 {[%clk
00:19:20]} {[%emt 00:00:11]} 0-1

[Event "Polofinale MCR juniorek 2023"]
[Site "Czech Republic"]
[Date "2023.11.14"]
[Round "5.8"]
[White "Macova, Marketa"]
[Black "Stavova, Helena"]
[Result "0-1"]
[TimeControl "90 min per 40 moves + 15 min + 30 sec / move from move 1"]
[WhiteFideId "23715588"]
[BlackFideId "23714751"]
[WhiteElo "1416"]
[BlackElo "1425"]

1. e4 {[%clk 01:30:58]} e5 {[%clk 01:30:50]} {[%emt 00:00:11]} 2. Nf3 {[%clk
01:31:22]} {[%emt 00:00:06]} Nc6 {[%clk 01:31:09]} {[%emt 00:00:11]} 3. Nc3
{[%clk 01:31:43]} {[%emt 00:00:08]} Nf6 {[%clk 01:31:22]} {[%emt 00:00:17]} 4.
d4 {[%clk 01:32:02]} {[%emt 00:00:12]} exd4 {[%clk 01:31:40]} {[%emt 00:00:13]}
5. Nxd4 {[%clk 01:32:24]} {[%emt 00:00:07]} Bb4 {[%clk 01:31:54]} {[%emt
00:00:16]} 6. Nxc6 {[%clk 01:32:31]} {[%emt 00:00:22]} bxc6 {[%clk 01:32:10]}
{[%emt 00:00:14]} 7. Bd3 {[%clk 01:32:34]} {[%emt 00:00:27]} d5 {[%clk
01:32:18]} {[%emt 00:00:22]} 8. exd5 {[%clk 01:32:41]} {[%emt 00:00:24]} cxd5
{[%clk 01:32:36]} {[%emt 00:00:13]} 9. O-O {[%clk 01:32:58]} {[%emt 00:00:12]}
O-O {[%clk 01:32:47]} {[%emt 00:00:19]} 10. Bg5 {[%clk 01:32:54]} {[%emt
00:00:33]} c6 {[%clk 01:32:23]} {[%emt 00:00:54]} 11. Qf3 {[%clk 01:32:12]}
{[%emt 00:01:12]} Be7 {[%clk 01:28:22]} {[%emt 00:04:32]} 12. h3 {[%clk
01:31:45]} {[%emt 00:00:57]} Be6 {[%clk 01:25:36]} {[%emt 00:03:16]} 13. Ne2
{[%clk 01:28:55]} {[%emt 00:03:20]} h6 {[%clk 01:21:35]} {[%emt 00:04:32]} 14.
Bh4 {[%clk 01:28:48]} {[%emt 00:00:37]} Qc8 {[%clk 01:17:38]} {[%emt 00:04:28]}
15. Rfe1 {[%clk 01:27:32]} {[%emt 00:01:45]} Re8 {[%clk 01:16:24]} {[%emt
00:01:44]} 16. Rad1 {[%clk 01:25:04]} {[%emt 00:02:58]} Rb8 {[%clk 01:13:49]}
{[%emt 00:03:05]} 17. b3 {[%clk 01:24:37]} {[%emt 00:00:57]} c5 {[%clk
01:04:01]} {[%emt 00:10:18]} 18. Nf4 {[%clk 01:13:26]} {[%emt 00:11:40]} Bd8
{[%clk 00:50:35]} {[%emt 00:13:57]} 19. Bxf6 {[%clk 01:09:05]} {[%emt
00:04:50]} Bxf6 {[%clk 00:49:47]} {[%emt 00:01:19]} 20. Nxd5 {[%clk 01:08:50]}
{[%emt 00:00:44]} Bxd5 {[%clk 00:46:33]} {[%emt 00:03:45]} 21. Rxe8+ {[%clk
01:04:13]} {[%emt 00:05:07]} Qxe8 {[%clk 00:46:55]} {[%emt 00:00:08]} 22. Qxd5
{[%clk 01:04:29]} {[%emt 00:00:14]} Qe7 {[%clk 00:43:52]} {[%emt 00:03:27]} 23.
Qe4 {[%clk 00:56:47]} {[%emt 00:08:18]} Qxe4 {[%clk 00:41:48]} {[%emt
00:02:35]} 24. Bxe4 {[%clk 00:57:05]} {[%emt 00:00:11]} Re8 {[%clk 00:42:00]}
{[%emt 00:00:18]} 25. Bf3 {[%clk 00:52:33]} {[%emt 00:05:03]} Bd4 {[%clk
00:41:01]} {[%emt 00:01:29]} 26. Kf1 {[%clk 00:51:25]} {[%emt 00:01:38]} Re6
{[%clk 00:36:02]} {[%emt 00:05:29]} 27. Bd5 {[%clk 00:47:35]} {[%emt 00:04:20]}
Ra6 {[%clk 00:32:56]} {[%emt 00:03:37]} 28. a4 {[%clk 00:47:43]} {[%emt
00:00:21]} Rf6 {[%clk 00:33:01]} {[%emt 00:00:25]} 29. f3 {[%clk 00:44:43]}
{[%emt 00:03:30]} Kf8 {[%clk 00:30:37]} {[%emt 00:02:54]} 30. Re1 {[%clk
00:43:01]} {[%emt 00:02:12]} Rd6 {[%clk 00:29:38]} {[%emt 00:01:24]} 31. Bc4
{[%clk 00:42:03]} {[%emt 00:01:32]} Bc3 {[%clk 00:29:20]} {[%emt 00:00:48]} 32.
Re2 {[%clk 00:41:24]} {[%emt 00:01:08]} Rd1+ {[%clk 00:28:20]} {[%emt
00:01:32]} 33. Kf2 {[%clk 00:41:41]} {[%emt 00:00:12]} h5 {[%clk 00:26:01]}
{[%emt 00:02:49]} 34. Kg3 {[%clk 00:37:41]} {[%emt 00:04:30]} Be1+ {[%clk
00:22:53]} {[%emt 00:03:39]} 35. Kf4 {[%clk 00:36:53]} {[%emt 00:01:17]} h4
{[%clk 00:21:31]} {[%emt 00:01:53]} 36. Kg4 {[%clk 00:34:43]} {[%emt 00:02:39]}
Bg3 {[%clk 00:14:30]} {[%emt 00:07:32]} 37. Bb5 {[%clk 00:33:12]} {[%emt
00:02:01]} g6 {[%clk 00:11:52]} {[%emt 00:03:07]} 38. Kg5 {[%clk 00:30:38]}
{[%emt 00:03:03]} Rd5+ {[%clk 00:09:51]} {[%emt 00:02:32]} 39. Kg4 {[%clk
00:29:37]} {[%emt 00:01:31]} Rd4+ {[%clk 00:09:22]} {[%emt 00:01:00]} 40. Kg5
{[%clk 00:25:04]} {[%emt 00:05:02]} Kg7 {[%clk 00:05:01]} {[%emt 00:04:52]} 41.
Re4 {[%clk 00:20:36]} {[%emt 00:04:57]} f6+ {[%clk 00:05:07]} {[%emt 00:00:24]}
42. Kg4 {[%clk 00:20:18]} {[%emt 00:00:48]} f5+ {[%clk 00:05:28]} {[%emt
00:00:10]} 0-1